[Event "Late-Titled-Tuesday-Blitz-April-23-2024"]
[Site "Chess.com"]
[Date "2024.04.23"]
[Round "1"]
[White "MuhittinBuker"]
[Black "Kolle05"]
[Result "0-1"]
[WhiteElo "2123"]
[BlackElo "2568"]
[TimeControl "180+1"]
[EndTime "14:04:21 PDT"]
[Termination "Kolle05 won by resignation"]

1. d4 {[%clk 0:02:59.4]} 1... Nf6 {[%clk 0:02:58.3]} 2. c4 {[%clk 0:02:59.8]}
2... e6 {[%clk 0:02:58]} 3. Nc3 {[%clk 0:03:00.3]} 3... Bb4 {[%clk 0:02:58.5]}
4. e3 {[%clk 0:03:00.7]} 4... b6 {[%clk 0:02:54]} 5. Nf3 {[%clk 0:03:00.4]} 5...
Ne4 {[%clk 0:02:53.4]} 6. Qc2 {[%clk 0:02:59.3]} 6... Bb7 {[%clk 0:02:53.1]} 7.
Bd3 {[%clk 0:02:58.5]} 7... f5 {[%clk 0:02:53.8]} 8. O-O {[%clk 0:02:57.7]} 8...
Bxc3 {[%clk 0:02:53.5]} 9. bxc3 {[%clk 0:02:57.4]} 9... d6 {[%clk 0:02:54]} 10.
Ne1 {[%clk 0:02:51.2]} 10... O-O {[%clk 0:02:52.1]} 11. f3 {[%clk 0:02:51.7]}
11... Nf6 {[%clk 0:02:52.3]} 12. e4 {[%clk 0:02:49.9]} 12... fxe4 {[%clk
0:02:49.8]} 13. fxe4 {[%clk 0:02:50.1]} 13... e5 {[%clk 0:02:50.7]} 14. Nf3
{[%clk 0:02:45.9]} 14... Nbd7 {[%clk 0:02:47.4]} 15. Bg5 {[%clk 0:02:44.2]}
15... Qe7 {[%clk 0:02:42.1]} 16. Rae1 {[%clk 0:02:42.8]} 16... h6 {[%clk
0:02:41.4]} 17. Bh4 {[%clk 0:02:42]} 17... g5 {[%clk 0:02:40.9]} 18. Bg3 {[%clk
0:02:41]} 18... Rf7 {[%clk 0:02:40.4]} 19. d5 {[%clk 0:02:37.8]} 19... Raf8
{[%clk 0:02:39.9]} 20. h3 {[%clk 0:02:36.8]} 20... Nc5 {[%clk 0:02:39.6]} 21.
Nh2 {[%clk 0:02:35.3]} 21... Bc8 {[%clk 0:02:38.8]} 22. Bf2 {[%clk 0:02:25.9]}
22... Nh5 {[%clk 0:02:34.7]} 23. Bxc5 {[%clk 0:02:25.2]} 23... bxc5 {[%clk
0:02:30.7]} 24. Be2 {[%clk 0:02:23.2]} 24... Ng3 {[%clk 0:02:28.1]} 25. Rxf7
{[%clk 0:02:16.3]} 25... Qxf7 {[%clk 0:02:29]} 26. Bg4 {[%clk 0:02:14.2]} 26...
Bxg4 {[%clk 0:02:22.3]} 27. Nxg4 {[%clk 0:02:13.2]} 27... Kg7 {[%clk 0:02:21.6]}
28. Ne3 {[%clk 0:02:02.5]} 28... Qf4 {[%clk 0:02:13.6]} 29. Ng4 {[%clk
0:01:28.8]} 29... h5 {[%clk 0:02:09.1]} 30. Nh2 {[%clk 0:01:26.8]} 30... g4
{[%clk 0:02:02.5]} 31. hxg4 {[%clk 0:01:21.3]} 31... hxg4 {[%clk 0:02:03.4]} 32.
Rb1 {[%clk 0:01:06.7]} 32... Qe3+ {[%clk 0:02:01.4]} 0-1

[Event "Late-Titled-Tuesday-Blitz-April-23-2024"]
[Site "Chess.com"]
[Date "2024.04.23"]
[Round "1"]
[White "Levanzovsky"]
[Black "Fandorine"]
[Result "0-1"]
[WhiteElo "2509"]
[BlackElo "2924"]
[TimeControl "180+1"]
[EndTime "14:04:22 PDT"]
[Termination "Fandorine won by resignation"]

1. e4 {[%clk 0:03:00.9]} 1... c5 {[%clk 0:02:46.5]} 2. Nf3 {[%clk 0:03:00.5]}
2... d6 {[%clk 0:02:45.4]} 3. d4 {[%clk 0:03:00.6]} 3... cxd4 {[%clk 0:02:44.5]}
4. Qxd4 {[%clk 0:03:01.5]} 4... Nf6 {[%clk 0:02:43.1]} 5. Nc3 {[%clk 0:03:01.3]}
5... a6 {[%clk 0:02:37.3]} 6. Bg5 {[%clk 0:02:57]} 6... Nc6 {[%clk 0:02:28.4]}
7. Qd3 {[%clk 0:02:57.3]} 7... e6 {[%clk 0:02:24.6]} 8. Be2 {[%clk 0:02:55.4]}
8... Be7 {[%clk 0:02:25]} 9. O-O {[%clk 0:02:51.5]} 9... O-O {[%clk 0:02:18.1]}
10. Rad1 {[%clk 0:02:50.6]} 10... Qc7 {[%clk 0:02:09.4]} 11. a3 {[%clk
0:02:50.1]} 11... Rd8 {[%clk 0:02:08.5]} 12. h3 {[%clk 0:02:45.1]} 12... b5
{[%clk 0:02:08.8]} 13. Rd2 {[%clk 0:02:41.7]} 13... Bb7 {[%clk 0:02:09.2]} 14.
Rfd1 {[%clk 0:02:41.8]} 14... Rac8 {[%clk 0:02:08.7]} 15. Bf4 {[%clk 0:02:41.9]}
15... Ne5 {[%clk 0:02:02.2]} 16. Bxe5 {[%clk 0:02:03.1]} 16... dxe5 {[%clk
0:01:57.2]} 17. Qe3 {[%clk 0:02:04]} 17... Rxd2 {[%clk 0:01:52.8]} 18. Rxd2
{[%clk 0:02:03.8]} 18... h6 {[%clk 0:01:49.7]} 19. Bd3 {[%clk 0:01:35.1]} 19...
Bc5 {[%clk 0:01:44.3]} 20. Qe2 {[%clk 0:01:33.5]} 20... Nh5 {[%clk 0:01:37.8]}
21. g3 {[%clk 0:01:33.6]} 21... Nxg3 {[%clk 0:01:37.2]} 22. Qd1 {[%clk
0:01:34.2]} 22... Nh5 {[%clk 0:01:36.4]} 23. Bf1 {[%clk 0:01:32.8]} 23... Nf6
{[%clk 0:01:34.6]} 24. a4 {[%clk 0:01:28.7]} 24... b4 {[%clk 0:01:23.1]} 0-1

[Event "Late-Titled-Tuesday-Blitz-April-23-2024"]
[Site "Chess.com"]
[Date "2024.04.23"]
[Round "1"]
[White "FM_Kappeler"]
[Black "Denmark2015"]
[Result "0-1"]
[WhiteElo "2252"]
[BlackElo "2612"]
[TimeControl "180+1"]
[EndTime "14:04:31 PDT"]
[Termination "Denmark2015 won by resignation"]

1. d4 {[%clk 0:02:55.3]} 1... e6 {[%clk 0:02:59.9]} 2. c4 {[%clk 0:02:48.6]}
2... f5 {[%clk 0:02:59.7]} 3. Nf3 {[%clk 0:02:48.3]} 3... Nf6 {[%clk 0:02:59.8]}
4. g3 {[%clk 0:02:48]} 4... Be7 {[%clk 0:02:59.9]} 5. Bg2 {[%clk 0:02:48]} 5...
Ne4 {[%clk 0:03:00.2]} 6. O-O {[%clk 0:02:47.8]} 6... d5 {[%clk 0:03:00.3]} 7.
Nbd2 {[%clk 0:02:45]} 7... Nc6 {[%clk 0:02:56.4]} 8. e3 {[%clk 0:02:37.6]} 8...
Bf6 {[%clk 0:02:48.5]} 9. b3 {[%clk 0:02:35]} 9... h5 {[%clk 0:02:48.1]} 10. h4
{[%clk 0:02:29.4]} 10... g5 {[%clk 0:02:47.7]} 11. hxg5 {[%clk 0:02:27.2]} 11...
Bxg5 {[%clk 0:02:48.3]} 12. Nxg5 {[%clk 0:02:18.8]} 12... Qxg5 {[%clk
0:02:47.3]} 13. Nf3 {[%clk 0:02:17.8]} 13... Qg7 {[%clk 0:02:19.8]} 14. Bb2
{[%clk 0:02:15.1]} 14... Bd7 {[%clk 0:02:17.1]} 15. Rc1 {[%clk 0:02:04.7]} 15...
h4 {[%clk 0:02:13.3]} 16. Nxh4 {[%clk 0:02:02.3]} 16... O-O-O {[%clk 0:02:12.6]}
17. cxd5 {[%clk 0:01:35.2]} 17... exd5 {[%clk 0:02:10.8]} 18. Nf3 {[%clk
0:01:12]} 18... Rh6 {[%clk 0:01:56.7]} 19. a3 {[%clk 0:01:06.5]} 19... Rdh8
{[%clk 0:01:56.2]} 20. b4 {[%clk 0:00:55.4]} 20... Nxg3 {[%clk 0:01:55.2]} 21.
fxg3 {[%clk 0:00:53.7]} 21... Qxg3 {[%clk 0:01:55.1]} 0-1

[Event "Late-Titled-Tuesday-Blitz-April-23-2024"]
[Site "Chess.com"]
[Date "2024.04.23"]
[Round "1"]
[White "wadsy27"]
[Black "zacachess"]
[Result "1-0"]
[WhiteElo "2642"]
[BlackElo "2331"]
[TimeControl "180+1"]
[EndTime "14:04:43 PDT"]
[Termination "wadsy27 won by resignation"]

1. c4 {[%clk 0:03:00.5]} 1... Nf6 {[%clk 0:02:59.6]} 2. g3 {[%clk 0:03:01]} 2...
g6 {[%clk 0:02:59.7]} 3. Bg2 {[%clk 0:03:01.4]} 3... Bg7 {[%clk 0:03:00]} 4. Nc3
{[%clk 0:03:01.8]} 4... O-O {[%clk 0:03:00.3]} 5. d3 {[%clk 0:03:01.8]} 5... d6
{[%clk 0:03:00.6]} 6. e4 {[%clk 0:03:01.7]} 6... c5 {[%clk 0:02:59.9]} 7. Nge2
{[%clk 0:03:02.3]} 7... Nc6 {[%clk 0:03:00.3]} 8. O-O {[%clk 0:03:02.5]} 8... a6
{[%clk 0:03:00.7]} 9. h3 {[%clk 0:02:56.9]} 9... Rb8 {[%clk 0:03:00.2]} 10. a4
{[%clk 0:02:57.4]} 10... Ne8 {[%clk 0:03:00.3]} 11. Be3 {[%clk 0:02:58.1]} 11...
b5 {[%clk 0:02:46]} 12. axb5 {[%clk 0:02:56.4]} 12... axb5 {[%clk 0:02:46.9]}
13. Nxb5 {[%clk 0:02:54.4]} 13... Bxb2 {[%clk 0:02:45.8]} 14. Rb1 {[%clk
0:02:45.5]} 14... Bg7 {[%clk 0:02:45.7]} 15. Qd2 {[%clk 0:02:42.8]} 15... Nc7
{[%clk 0:02:45.5]} 16. Nec3 {[%clk 0:02:25.5]} 16... Nd4 {[%clk 0:02:28.9]} 17.
Nxc7 {[%clk 0:02:22.4]} 17... Rxb1 {[%clk 0:02:14]} 18. Rxb1 {[%clk 0:02:22.4]}
18... Qxc7 {[%clk 0:02:12.6]} 19. Nd5 {[%clk 0:02:22.4]} 19... Qa7 {[%clk
0:01:43.5]} 20. Bg5 {[%clk 0:02:13]} 20... f6 {[%clk 0:01:32.4]} 21. Be3 {[%clk
0:02:11]} 21... Bxh3 {[%clk 0:01:32.2]} 22. Bxd4 {[%clk 0:02:09.5]} 22... Bxg2
{[%clk 0:01:32]} 23. Bxc5 {[%clk 0:02:06.5]} 23... Qxc5 {[%clk 0:01:23]} 24.
Nxe7+ {[%clk 0:01:54.7]} 24... Kf7 {[%clk 0:01:22.4]} 25. Rb7 {[%clk 0:01:54.8]}
25... Bf3 {[%clk 0:00:56.3]} 26. Nf5+ {[%clk 0:01:51.5]} 26... Ke8 {[%clk
0:00:40.7]} 27. Nxg7+ {[%clk 0:01:50.8]} 1-0

[Event "Late-Titled-Tuesday-Blitz-April-23-2024"]
[Site "Chess.com"]
[Date "2024.04.23"]
[Round "1"]
[White "AlexeiShirov"]
[Black "traack"]
[Result "1-0"]
[WhiteElo "2800"]
[BlackElo "2458"]
[TimeControl "180+1"]
[EndTime "14:04:49 PDT"]
[Termination "AlexeiShirov won by checkmate"]

1. e4 {[%clk 0:03:00.9]} 1... c5 {[%clk 0:02:54.9]} 2. Nf3 {[%clk 0:02:59.5]}
2... d6 {[%clk 0:02:49.8]} 3. d4 {[%clk 0:02:59.1]} 3... cxd4 {[%clk 0:02:50]}
4. Nxd4 {[%clk 0:02:59.6]} 4... Nf6 {[%clk 0:02:50.2]} 5. Nc3 {[%clk 0:03:00.1]}
5... Nc6 {[%clk 0:02:47.4]} 6. Bg5 {[%clk 0:02:59.1]} 6... e6 {[%clk 0:02:44.9]}
7. Qd2 {[%clk 0:02:59.6]} 7... Bd7 {[%clk 0:02:39.5]} 8. Ndb5 {[%clk 0:02:51.5]}
8... Qb8 {[%clk 0:01:05]} 9. O-O-O {[%clk 0:02:46.3]} 9... h6 {[%clk 0:01:01.4]}
10. Bh4 {[%clk 0:02:34]} 10... a6 {[%clk 0:00:51.6]} 11. Nxd6+ {[%clk 0:02:33]}
11... Bxd6 {[%clk 0:00:52]} 12. Qxd6 {[%clk 0:02:33]} 12... Qxd6 {[%clk
0:00:52.9]} 13. Rxd6 {[%clk 0:02:32.7]} 13... Ke7 {[%clk 0:00:53.8]} 14. Rxc6
{[%clk 0:02:28.9]} 14... Bxc6 {[%clk 0:00:51.3]} 15. e5 {[%clk 0:02:28.8]} 15...
g5 {[%clk 0:00:45]} 16. exf6+ {[%clk 0:02:28.2]} 16... Kxf6 {[%clk 0:00:44.8]}
17. Bg3 {[%clk 0:02:28.7]} 17... Kg6 {[%clk 0:00:43.5]} 18. h4 {[%clk
0:02:23.7]} 18... f5 {[%clk 0:00:40.7]} 19. Be5 {[%clk 0:02:23]} 19... Rh7
{[%clk 0:00:38.4]} 20. f3 {[%clk 0:02:17.8]} 20... g4 {[%clk 0:00:37.7]} 21.
fxg4 {[%clk 0:02:17.3]} 21... b5 {[%clk 0:00:31]} 22. Bd3 {[%clk 0:02:10.3]}
22... b4 {[%clk 0:00:28.5]} 23. gxf5+ {[%clk 0:02:05.4]} 23... exf5 {[%clk
0:00:28.2]} 24. Ne2 {[%clk 0:02:05]} 24... Kh5 {[%clk 0:00:24.7]} 25. Nf4+
{[%clk 0:02:03.2]} 25... Kg4 {[%clk 0:00:25.2]} 26. Be2+ {[%clk 0:01:57.4]}
26... Kg3 {[%clk 0:00:25.3]} 27. Rh3+ {[%clk 0:01:57.2]} 27... Kf2 {[%clk
0:00:24.2]} 28. Bd4+ {[%clk 0:01:57.7]} 28... Ke1 {[%clk 0:00:24.2]} 29. Rh1#
{[%clk 0:01:58.2]} 1-0

[Event "Late-Titled-Tuesday-Blitz-April-23-2024"]
[Site "Chess.com"]
[Date "2024.04.23"]
[Round "1"]
[White "Meri-Arabidze"]
[Black "Chessdude1987"]
[Result "1-0"]
[WhiteElo "2680"]
[BlackElo "2373"]
[TimeControl "180+1"]
[EndTime "14:05:11 PDT"]
[Termination "Meri-Arabidze won by resignation"]

1. c4 {[%clk 0:03:00.9]} 1... e6 {[%clk 0:02:59]} 2. Nf3 {[%clk 0:03:00.3]} 2...
f5 {[%clk 0:02:58.6]} 3. g3 {[%clk 0:03:01.2]} 3... Nf6 {[%clk 0:02:58.3]} 4.
Bg2 {[%clk 0:03:01.9]} 4... Be7 {[%clk 0:02:57.9]} 5. O-O {[%clk 0:03:02.6]}
5... O-O {[%clk 0:02:57.6]} 6. Nc3 {[%clk 0:03:02.7]} 6... d6 {[%clk 0:02:57.4]}
7. d4 {[%clk 0:03:02.8]} 7... Ne4 {[%clk 0:02:56.8]} 8. Qc2 {[%clk 0:03:02.5]}
8... Nxc3 {[%clk 0:02:56.3]} 9. bxc3 {[%clk 0:03:03.4]} 9... Bf6 {[%clk
0:02:41]} 10. e4 {[%clk 0:03:02.6]} 10... fxe4 {[%clk 0:02:25]} 11. Qxe4 {[%clk
0:03:03.5]} 11... d5 {[%clk 0:02:25.4]} 12. Qe2 {[%clk 0:03:00.6]} 12... c5
{[%clk 0:02:23.3]} 13. Bf4 {[%clk 0:02:57.6]} 13... Nc6 {[%clk 0:02:21.2]} 14.
Rad1 {[%clk 0:02:56.1]} 14... cxd4 {[%clk 0:02:13.7]} 15. cxd4 {[%clk 0:02:57]}
15... b6 {[%clk 0:02:13]} 16. Rfe1 {[%clk 0:02:53.8]} 16... Na5 {[%clk
0:01:47.1]} 17. Ne5 {[%clk 0:02:35.7]} 17... Ba6 {[%clk 0:01:35.1]} 18. Qg4
{[%clk 0:02:33.4]} 18... Re8 {[%clk 0:01:24.8]} 19. cxd5 {[%clk 0:02:29.5]}
19... exd5 {[%clk 0:01:24.7]} 20. h4 {[%clk 0:02:26.1]} 20... Rc8 {[%clk
0:01:17.8]} 21. h5 {[%clk 0:02:23.5]} 21... Nc4 {[%clk 0:01:03.7]} 22. h6 {[%clk
0:02:18.9]} 22... Re7 {[%clk 0:00:29.3]} 23. hxg7 {[%clk 0:02:10]} 23... Rxg7
{[%clk 0:00:28.6]} 24. Qe6+ {[%clk 0:02:09.2]} 24... Kf8 {[%clk 0:00:27.9]} 25.
Bxd5 {[%clk 0:02:05.2]} 25... Nd6 {[%clk 0:00:16.7]} 26. Nd7+ {[%clk 0:01:59.2]}
26... Qxd7 {[%clk 0:00:14.3]} 27. Qxf6+ {[%clk 0:01:58.6]} 27... Nf7 {[%clk
0:00:13]} 28. Bh6 {[%clk 0:01:55]} 1-0

[Event "Late-Titled-Tuesday-Blitz-April-23-2024"]
[Site "Chess.com"]
[Date "2024.04.23"]
[Round "1"]
[White "TangerineandLemon25"]
[Black "cristiano78"]
[Result "1-0"]
[WhiteElo "2619"]
[BlackElo "2265"]
[TimeControl "180+1"]
[EndTime "14:05:11 PDT"]
[Termination "TangerineandLemon25 won by resignation"]

1. e4 {[%clk 0:03:00]} 1... c5 {[%clk 0:02:53.6]} 2. Nf3 {[%clk 0:03:00]} 2...
d6 {[%clk 0:02:52.4]} 3. d4 {[%clk 0:03:00.3]} 3... cxd4 {[%clk 0:02:52.6]} 4.
Nxd4 {[%clk 0:03:01.2]} 4... Nf6 {[%clk 0:02:52.7]} 5. Nc3 {[%clk 0:03:00.2]}
5... a6 {[%clk 0:02:51.9]} 6. Rg1 {[%clk 0:03:00]} 6... e5 {[%clk 0:02:49.7]} 7.
Nb3 {[%clk 0:03:00.2]} 7... h6 {[%clk 0:02:48.7]} 8. g4 {[%clk 0:02:59.9]} 8...
Nc6 {[%clk 0:02:46.9]} 9. h4 {[%clk 0:02:59.9]} 9... Be6 {[%clk 0:02:45.4]} 10.
g5 {[%clk 0:03:00]} 10... hxg5 {[%clk 0:02:45.2]} 11. hxg5 {[%clk 0:03:00.9]}
11... Nd7 {[%clk 0:02:44.9]} 12. g6 {[%clk 0:03:01]} 12... f6 {[%clk 0:02:43.2]}
13. Be3 {[%clk 0:03:01.3]} 13... Nc5 {[%clk 0:02:41]} 14. Nd5 {[%clk 0:02:54.2]}
14... Rc8 {[%clk 0:02:37.9]} 15. Nc3 {[%clk 0:02:48]} 15... Nxb3 {[%clk
0:02:34.5]} 16. axb3 {[%clk 0:02:48.9]} 16... Be7 {[%clk 0:02:24.4]} 17. Qd2
{[%clk 0:02:34]} 17... Nb4 {[%clk 0:02:22]} 18. f4 {[%clk 0:02:30.3]} 18... d5
{[%clk 0:02:16]} 19. f5 {[%clk 0:02:24.8]} 19... Bg8 {[%clk 0:02:15.5]} 20. exd5
{[%clk 0:02:25.2]} 20... Nxd5 {[%clk 0:02:14.7]} 21. Nxd5 {[%clk 0:02:14.4]}
21... Qxd5 {[%clk 0:02:14.1]} 22. Bg2 {[%clk 0:01:58.2]} 22... Qxd2+ {[%clk
0:02:13.1]} 23. Kxd2 {[%clk 0:01:59.1]} 23... Rd8+ {[%clk 0:02:09.9]} 24. Ke1
{[%clk 0:01:55.5]} 24... Bd5 {[%clk 0:02:09.7]} 25. Kf2 {[%clk 0:01:44.1]} 25...
Bxg2 {[%clk 0:02:08.7]} 26. Rxg2 {[%clk 0:01:45]} 26... Kd7 {[%clk 0:02:04.9]}
27. Ke2 {[%clk 0:01:41.4]} 27... Kc6 {[%clk 0:02:04.3]} 28. Rf1 {[%clk
0:01:40.3]} 28... Bc5 {[%clk 0:02:01.9]} 29. Bd2 {[%clk 0:01:38.3]} 29... Rh3
{[%clk 0:01:59.1]} 30. Bc1 {[%clk 0:01:35.7]} 30... Rd4 {[%clk 0:01:54.2]} 31.
c3 {[%clk 0:01:30.5]} 31... Re4+ {[%clk 0:01:53.8]} 32. Kd1 {[%clk 0:01:31]}
32... b5 {[%clk 0:01:49.4]} 33. Kc2 {[%clk 0:01:31]} 33... Be3 {[%clk
0:01:47.6]} 34. Re1 {[%clk 0:01:29.6]} 34... Kd5 {[%clk 0:01:37.3]} 35. Rd1+
{[%clk 0:01:20.2]} 35... Kc6 {[%clk 0:01:35.7]} 36. Rd3 {[%clk 0:01:18.9]} 36...
Bxc1 {[%clk 0:01:34.8]} 37. Rxh3 {[%clk 0:01:19.5]} 37... Bg5 {[%clk 0:01:25.5]}
38. Rxg5 {[%clk 0:01:12.4]} 38... fxg5 {[%clk 0:01:25]} 39. f6 {[%clk
0:01:13.3]} 39... gxf6 {[%clk 0:01:22.2]} 40. g7 {[%clk 0:01:12.7]} 1-0

[Event "Late-Titled-Tuesday-Blitz-April-23-2024"]
[Site "Chess.com"]
[Date "2024.04.23"]
[Round "1"]
[White "maurovargas01"]
[Black "Itay121"]
[Result "0-1"]
[WhiteElo "1912"]
[BlackElo "2553"]
[TimeControl "180+1"]
[EndTime "14:05:12 PDT"]
[Termination "Itay121 won on time"]

1. e4 {[%clk 0:02:55.5]} 1... e5 {[%clk 0:02:55.1]} 2. Nf3 {[%clk 0:02:54.2]}
2... d5 {[%clk 0:02:54.1]} 3. exd5 {[%clk 0:02:53.9]} 3... Nf6 {[%clk
0:02:51.4]} 4. Bc4 {[%clk 0:02:49.8]} 4... e4 {[%clk 0:02:50]} 5. Qe2 {[%clk
0:02:47.6]} 5... Bd6 {[%clk 0:02:30.7]} 6. O-O {[%clk 0:02:34.9]} 6... O-O
{[%clk 0:02:29.8]} 7. Nd4 {[%clk 0:02:23.1]} 7... c5 {[%clk 0:02:21.5]} 8. Nb5
{[%clk 0:02:20.1]} 8... Bxh2+ {[%clk 0:02:10.8]} 9. Kxh2 {[%clk 0:02:17.6]} 9...
Ng4+ {[%clk 0:02:11.2]} 10. Kg1 {[%clk 0:02:08.2]} 10... Qh4 {[%clk 0:02:10.6]}
11. Qxg4 {[%clk 0:01:12.6]} 11... Bxg4 {[%clk 0:02:11.5]} 12. Nc7 {[%clk
0:01:02.4]} 12... Bf3 {[%clk 0:02:01.7]} 13. Re1 {[%clk 0:00:37.3]} 13... Qg4
{[%clk 0:01:52.9]} 14. Bf1 {[%clk 0:00:37.1]} 14... Nd7 {[%clk 0:01:51.8]} 15.
Nxa8 {[%clk 0:00:37]} 15... Ne5 {[%clk 0:01:51.8]} 16. d4 {[%clk 0:00:34.8]}
16... cxd4 {[%clk 0:01:49.9]} 17. Nd2 {[%clk 0:00:26.4]} 17... Bxg2 {[%clk
0:01:47.8]} 18. Bxg2 {[%clk 0:00:25]} 18... Nf3+ {[%clk 0:01:48.4]} 19. Kf1
{[%clk 0:00:24.6]} 19... Nh2+ {[%clk 0:01:48.3]} 20. Kg1 {[%clk 0:00:22]} 20...
Nf3+ {[%clk 0:01:48.8]} 21. Nxf3 {[%clk 0:00:22.2]} 21... exf3 {[%clk
0:01:49.7]} 0-1

[Event "Late-Titled-Tuesday-Blitz-April-23-2024"]
[Site "Chess.com"]
[Date "2024.04.23"]
[Round "1"]
[White "SCIM"]
[Black "gorgeous1083"]
[Result "1-0"]
[WhiteElo "2566"]
[BlackElo "2085"]
[TimeControl "180+1"]
[EndTime "14:05:17 PDT"]
[Termination "SCIM won on time"]

1. e4 {[%clk 0:02:58.3]} 1... e6 {[%clk 0:03:00.2]} 2. d4 {[%clk 0:02:57.1]}
2... d5 {[%clk 0:03:01.1]} 3. Nc3 {[%clk 0:02:56.6]} 3... Bb4 {[%clk 0:03:00.8]}
4. Ne2 {[%clk 0:02:54.8]} 4... c5 {[%clk 0:02:58.9]} 5. dxc5 {[%clk 0:02:51.1]}
5... Bxc5 {[%clk 0:02:58.3]} 6. exd5 {[%clk 0:02:48]} 6... exd5 {[%clk
0:02:57.3]} 7. Nxd5 {[%clk 0:02:45.3]} 7... Nf6 {[%clk 0:02:46.6]} 8. Nec3
{[%clk 0:02:30.3]} 8... O-O {[%clk 0:02:37.3]} 9. Bg5 {[%clk 0:02:29.2]} 9...
Re8+ {[%clk 0:02:36.3]} 10. Be2 {[%clk 0:02:28.5]} 10... Bg4 {[%clk 0:01:42.3]}
11. Nxf6+ {[%clk 0:02:23.9]} 11... gxf6 {[%clk 0:01:34.4]} 12. Qxd8 {[%clk
0:02:22.7]} 12... Rxd8 {[%clk 0:01:31.2]} 13. Bxf6 {[%clk 0:02:12.4]} 13... Re8
{[%clk 0:01:22.7]} 14. f3 {[%clk 0:02:06.6]} 14... Bf5 {[%clk 0:01:19.8]} 15.
O-O-O {[%clk 0:02:03.8]} 15... Nc6 {[%clk 0:01:15.9]} 16. Bd3 {[%clk 0:01:57.6]}
16... Bg6 {[%clk 0:01:07.7]} 17. Bxg6 {[%clk 0:01:54.6]} 17... fxg6 {[%clk
0:01:02.9]} 18. Ne4 {[%clk 0:01:55.5]} 18... Be3+ {[%clk 0:00:58.8]} 19. Kb1
{[%clk 0:01:56]} 19... b6 {[%clk 0:00:45.2]} 20. Rhe1 {[%clk 0:01:54.1]} 20...
Bh6 {[%clk 0:00:42]} 21. Rd7 {[%clk 0:01:50.4]} 21... Re6 {[%clk 0:00:17.5]} 22.
Bc3 {[%clk 0:01:47.5]} 22... Ne5 {[%clk 0:00:04.2]} 23. Bxe5 {[%clk 0:01:45.9]}
1-0

[Event "Late-Titled-Tuesday-Blitz-April-23-2024"]
[Site "Chess.com"]
[Date "2024.04.23"]
[Round "1"]
[White "GlavkonVVS"]
[Black "ashookk"]
[Result "1-0"]
[WhiteElo "2634"]
[BlackElo "2325"]
[TimeControl "180+1"]
[EndTime "14:05:31 PDT"]
[Termination "GlavkonVVS won by resignation"]

1. c4 {[%clk 0:02:51.2]} 1... Nf6 {[%clk 0:02:55.7]} 2. Nc3 {[%clk 0:02:51.3]}
2... g6 {[%clk 0:02:41.4]} 3. Nf3 {[%clk 0:02:51.3]} 3... Bg7 {[%clk 0:02:41.4]}
4. d4 {[%clk 0:02:51.8]} 4... c5 {[%clk 0:02:39.4]} 5. d5 {[%clk 0:02:50.3]}
5... d6 {[%clk 0:02:39.3]} 6. e4 {[%clk 0:02:50.4]} 6... O-O {[%clk 0:02:39.7]}
7. h3 {[%clk 0:02:49.7]} 7... b5 {[%clk 0:02:38.3]} 8. cxb5 {[%clk 0:02:49.4]}
8... a6 {[%clk 0:02:38.9]} 9. a4 {[%clk 0:02:49.2]} 9... axb5 {[%clk 0:02:35.7]}
10. Bxb5 {[%clk 0:02:49]} 10... Ba6 {[%clk 0:02:36.3]} 11. Ra3 {[%clk
0:02:47.2]} 11... Nbd7 {[%clk 0:02:35.8]} 12. O-O {[%clk 0:02:46.4]} 12... Qa5
{[%clk 0:02:21.6]} 13. Bd2 {[%clk 0:02:43.1]} 13... Rfb8 {[%clk 0:02:17.7]} 14.
Qc2 {[%clk 0:02:30.7]} 14... Qb4 {[%clk 0:01:34.2]} 15. Rb3 {[%clk 0:02:25]}
15... Qa5 {[%clk 0:01:31.8]} 16. Re1 {[%clk 0:02:23.1]} 16... Bxb5 {[%clk
0:01:29.2]} 17. Rxb5 {[%clk 0:02:22.6]} 17... Rxb5 {[%clk 0:01:26.3]} 18. axb5
{[%clk 0:02:21.4]} 18... Nb6 {[%clk 0:01:23.9]} 19. e5 {[%clk 0:02:18.4]} 19...
Ne8 {[%clk 0:01:12.7]} 20. exd6 {[%clk 0:02:17.5]} 20... exd6 {[%clk 0:01:12.1]}
21. g3 {[%clk 0:01:42.8]} 21... Nf6 {[%clk 0:00:55.7]} 22. Kg2 {[%clk
0:01:34.1]} 22... Nc4 {[%clk 0:00:42.5]} 23. Bf4 {[%clk 0:01:30.5]} 23... Ne8
{[%clk 0:00:37.7]} 24. Qe4 {[%clk 0:01:07.4]} 24... Nf6 {[%clk 0:00:27.1]} 25.
Qxc4 {[%clk 0:01:06.4]} 1-0

[Event "Late-Titled-Tuesday-Blitz-April-23-2024"]
[Site "Chess.com"]
[Date "2024.04.23"]
[Round "1"]
[White "slorovel"]
[Black "mishanick"]
[Result "0-1"]
[WhiteElo "2549"]
[BlackElo "3157"]
[TimeControl "180+1"]
[EndTime "14:05:42 PDT"]
[Termination "mishanick won on time"]

1. e4 {[%clk 0:03:00.9]} 1... c5 {[%clk 0:02:54.1]} 2. Nf3 {[%clk 0:03:00.4]}
2... e6 {[%clk 0:02:53.7]} 3. c4 {[%clk 0:02:59.4]} 3... Nc6 {[%clk 0:02:53.1]}
4. Be2 {[%clk 0:02:59.1]} 4... e5 {[%clk 0:02:52.6]} 5. O-O {[%clk 0:02:58.1]}
5... d6 {[%clk 0:02:53.4]} 6. a3 {[%clk 0:02:58.2]} 6... h5 {[%clk 0:02:49.5]}
7. b4 {[%clk 0:02:55.5]} 7... b6 {[%clk 0:02:49]} 8. Nc3 {[%clk 0:02:52.4]} 8...
g6 {[%clk 0:02:46.2]} 9. d3 {[%clk 0:02:48.7]} 9... Bg4 {[%clk 0:02:43.4]} 10.
Ne1 {[%clk 0:02:33.5]} 10... Bxe2 {[%clk 0:02:41.2]} 11. Nxe2 {[%clk 0:02:32.6]}
11... Bg7 {[%clk 0:02:41.1]} 12. b5 {[%clk 0:02:31.3]} 12... Nce7 {[%clk
0:02:37.9]} 13. a4 {[%clk 0:02:30]} 13... Nf6 {[%clk 0:02:36.9]} 14. Nc2 {[%clk
0:02:28.5]} 14... h4 {[%clk 0:02:37.4]} 15. h3 {[%clk 0:02:23.8]} 15... Nh5
{[%clk 0:02:37.1]} 16. a5 {[%clk 0:02:18.5]} 16... bxa5 {[%clk 0:02:29.8]} 17.
Bd2 {[%clk 0:02:08.3]} 17... O-O {[%clk 0:02:29]} 18. Bxa5 {[%clk 0:02:06.3]}
18... Qd7 {[%clk 0:02:28.9]} 19. Bc3 {[%clk 0:02:05.5]} 19... f5 {[%clk
0:02:29.1]} 20. f4 {[%clk 0:01:42.8]} 20... fxe4 {[%clk 0:02:18.1]} 21. dxe4
{[%clk 0:01:38.4]} 21... exf4 {[%clk 0:02:18.2]} 22. Bxg7 {[%clk 0:01:37.3]}
22... Kxg7 {[%clk 0:02:19.1]} 23. Ra6 {[%clk 0:01:36]} 23... Rad8 {[%clk
0:02:14.9]} 24. Qa1+ {[%clk 0:01:34]} 24... Kg8 {[%clk 0:02:12.6]} 25. Rxa7
{[%clk 0:01:33.8]} 25... Qe6 {[%clk 0:02:13.2]} 26. Nc3 {[%clk 0:01:22.9]} 26...
f3 {[%clk 0:02:11.1]} 27. Nd5 {[%clk 0:00:52.3]} 27... Nxd5 {[%clk 0:02:00]} 28.
exd5 {[%clk 0:00:42]} 28... Qe4 {[%clk 0:02:00.5]} 29. Rf2 {[%clk 0:00:18.3]}
29... fxg2 {[%clk 0:01:58.6]} 30. Rxf8+ {[%clk 0:00:01.8]} 30... Rxf8 {[%clk
0:01:58.3]} 31. Ra8 {[%clk 0:00:02.7]} 31... Qxc2 {[%clk 0:01:39.7]} 32. Rxf8+
{[%clk 0:00:02.5]} 32... Kxf8 {[%clk 0:01:39.8]} 33. Qh8+ {[%clk 0:00:01.8]}
33... Kf7 {[%clk 0:01:39.7]} 0-1